{"text_format":"2","workbook":"xlsx","n_sheets":7,"sheets":["AHU","IA GIT","DAZD","FSZ","FUT","CRCHRRI","NIPA"],"not_rendered":{"charts":0,"images":11,"macros":0,"external_links":0,"defined_names":1,"comments":0,"pivot_tables":0},"unopened":[],"bounds":{"document_bytes":16777216,"sheet_cells":100000,"run_cost":"one","rows_first":2000,"rows_last":500,"rows_between":2000,"halvings":0,"cell_chars":16384,"cell_head_chars":4096},"cells_cut":0,"cells_raw":0,"read":"whole","date_system":"1900"}

{"sheet":"AHU","index":0,"n_rows":59,"n_cols":6,"rows_kept":59,"cut":false,"hidden":false,"merged":[[4,0,4,1],[5,0,5,1],[6,0,6,1],[68,0,68,1]]}
[null,"                                                                Класификация на информацията:"]
[null,"Ниво 0 , TLP-WHITE"]
[]
[]
["Б Ю Д Ж Е Т   "]
["на АГЕНЦИЯТА ЗА ХОРАТА С УВРЕЖДАНИЯ",{"$nulls":4}," "]
["ЗА 2026 ГОДИНА"]
[]
[null,"(евро)"]
[]
["П О К А З А Т Е Л И","СУМА"]
[]
[]
["I. ПРИХОДИ, ПОМОЩИ И ДАРЕНИЯ ",{"$f":"B17","v":10200}]
[]
[]
["Неданъчни приходи",{"$f":"B18+B19+B20+B21","v":10200}]
["Държавни такси"]
["Приходи и доходи от собственост"]
["Глоби, санкции и наказателни лихви",10200]
["Други приходи"]
[]
["II. РАЗХОДИ ",{"$f":"B25","v":5466800}]
[]
["Общо разходи",{"$f":"+B26+B34","v":5466800}]
["Текущи разходи",{"$f":"B27+B28+B29+B30+B31+B32","v":5441200}]
["Персонал",584000]
["Издръжка и други текущи разходи",86000]
["Платени данъци, такси и административни санкции",3600]
["Текущи трансфери, обезщетения и помощи за домакинствата"]
["Субсидии и други текущи трансфери за нефинансови предприятия",4563100]
["Субсидии и други текущи трансфери за юридически лица с нестопанска цел",204500]
[]
["Капиталови разходи",{"$f":"B35","v":25600}]
["Придобиване на дълготрайни активи и основен ремонт",25600]
[]
["НАТУРАЛНИ ПОКАЗАТЕЛИ"]
["   Щатни бройки",24]
[]
["III. БЮДЖЕТНИ ВЗАИМООТНОШЕНИЯ  (ТРАНСФЕРИ) - НЕТО (+/-)",{"$f":"B42+B45+B48+B51","v":5456600}]
[]
["Трансфери между бюджета на бюджетна организация и ЦБ (нето)",{"$f":"B43","v":0}]
["     - трансфери от/за ЦБ (+/-)"]
[]
["Трансфери между бюджети (нето)",{"$f":"B46","v":0}]
["     - получени трансфери (+)"]
[]
["Трансфери между бюджети и сметки за средствата от ЕС (нето)",{"$f":"B49","v":0}]
["     - предоставени трансфери (-)"]
[]
["Разчети за извършени плащания  в СЕБРА (+/-)",{"$f":"B52+B53","v":5456600}]
["    - разчети с подведомствени разпоредители за плащания в СЕБРА (-) "]
["    - разчети с първостепенен разпоредител за плащания в СЕБРА (+)",{"$f":"B23-B14","v":5456600}]
[]
[]
["IV. Максимален размер на ангажиментите за разходи, които могат да бъдат поети през 2026 г.",{"$f":"B28+B30+B31+B32+B35","v":4879200}]
[]
[]
["V. Максимален размер на новите задължения за разходи, които могат да бъдат натрупани през 2026 г.",{"$f":"B28+B30+B31+B32+B35","v":4879200}]

{"sheet":"IA GIT","index":1,"n_rows":59,"n_cols":6,"rows_kept":59,"cut":false,"hidden":true,"merged":[[4,0,4,1],[5,0,5,1],[6,0,6,1],[68,0,68,1]]}
[null,"                                                                Класификация на информацията:"]
[null,"                                                Ниво 1, [TLP-GREEN]"]
[]
[]
["Б Ю Д Ж Е Т   "]
["на ИА \"ГЛАВНА ИНСПЕКЦИЯ ПО ТРУДА\"",{"$nulls":4}," "]
["ЗА 2026 ГОДИНА"]
[]
[null,"(евро)"]
[]
["П О К А З А Т Е Л И","СУМА"]
[]
[]
["I. ПРИХОДИ, ПОМОЩИ И ДАРЕНИЯ ",{"$f":"B17","v":3853800},null,{"$f":"B14+B40-B23","v":0}]
[]
[]
["Неданъчни приходи",{"$f":"B18+B19+B20+B21","v":3853800}]
["Държавни такси"]
["Приходи и доходи от собственост"]
["Глоби, санкции и наказателни лихви",{"$f":"4509600+1004300","v":5513900}]
["Други приходи",-1660100]
[]
["II. РАЗХОДИ ",{"$f":"B25","v":14850000}]
[]
["Общо разходи",{"$f":"+B26+B34","v":14850000}]
["Текущи разходи",{"$f":"B27+B28+B29+B30+B31+B32","v":14671000}]
["Персонал",{"$f":"13425900+39300","v":13465200}]
["Издръжка и други текущи разходи",1154700]
["Платени данъци, такси и административни санкции",51100]
["Текущи трансфери, обезщетения и помощи за домакинствата"]
["Субсидии и други текущи трансфери за нефинансови предприятия"]
["Субсидии и други текущи трансфери за юридически лица с нестопанска цел"]
[]
["Капиталови разходи",{"$f":"B35","v":179000}]
["Придобиване на дълготрайни активи и основен ремонт",179000]
[]
["НАТУРАЛНИ ПОКАЗАТЕЛИ"]
["   Щатни бройки",650]
[]
["III. БЮДЖЕТНИ ВЗАИМООТНОШЕНИЯ  (ТРАНСФЕРИ) - НЕТО (+/-)",{"$f":"B42+B45+B48+B51","v":10996200}]
[]
["Трансфери между бюджета на бюджетна организация и ЦБ (нето)",{"$f":"B43","v":0}]
["     - трансфери от/за ЦБ (+/-)"]
[]
["Трансфери между бюджети (нето)",{"$f":"B46","v":0}]
["     - получени трансфери (+)"]
[]
["Трансфери между бюджети и сметки за средствата от ЕС (нето)",{"$f":"B49","v":0}]
["     - предоставени трансфери (-)"]
[]
["Разчети за извършени плащания  в СЕБРА (+/-)",{"$f":"B52+B53","v":10996200}]
["    - разчети с подведомствени разпоредители за плащания в СЕБРА (-) "]
["    - разчети с първостепенен разпоредител за плащания в СЕБРА (+)",{"$f":"B23-B14","v":10996200}]
[]
[]
["IV. Максимален размер на ангажиментите за разходи, които могат да бъдат поети през 2026 г.",{"$f":"B28+B30+B31+B32+B35","v":1333700}]
[]
[]
["V. Максимален размер на новите задължения за разходи, които могат да бъдат натрупани през 2026 г.",{"$f":"B28+B30+B31+B32+B35","v":1333700}]

{"sheet":"DAZD","index":2,"n_rows":59,"n_cols":6,"rows_kept":59,"cut":false,"hidden":true,"merged":[[4,0,4,1],[5,0,5,1],[6,0,6,1],[68,0,68,1]]}
[null,"                                                                Класификация на информацията:"]
[null,"                                                Ниво 1, [TLP-GREEN]"]
[]
[]
["Б Ю Д Ж Е Т   "]
["на ДЪРЖАВНАТА АГЕНЦИЯ ЗА ЗАКРИЛА НА ДЕТЕТО",{"$nulls":4}," "]
["ЗА 2026 ГОДИНА"]
[]
[null,"(евро)"]
[]
["П О К А З А Т Е Л И","СУМА"]
[]
[]
["I. ПРИХОДИ, ПОМОЩИ И ДАРЕНИЯ ",{"$f":"B17","v":500},null,{"$f":"B14+B40-B23","v":0}]
[]
[]
["Неданъчни приходи",{"$f":"B18+B19+B20+B21","v":500}]
["Държавни такси"]
["Приходи и доходи от собственост",500]
["Глоби, санкции и наказателни лихви"]
["Други приходи"]
[]
["II. РАЗХОДИ ",{"$f":"B25","v":1968800}]
[]
["Общо разходи",{"$f":"+B26+B34","v":1968800}]
["Текущи разходи",{"$f":"B27+B28+B29+B30+B31+B32","v":1950900}]
["Персонал",{"$f":"1402800+45400","v":1448200}]
["Издръжка и други текущи разходи",{"$f":"243000+253000","v":496000}]
["Платени данъци, такси и административни санкции",6700]
["Текущи трансфери, обезщетения и помощи за домакинствата"]
["Субсидии и други текущи трансфери за нефинансови предприятия"]
["Субсидии и други текущи трансфери за юридически лица с нестопанска цел"]
[]
["Капиталови разходи",{"$f":"B35","v":17900}]
["Придобиване на дълготрайни активи и основен ремонт",17900]
[]
["НАТУРАЛНИ ПОКАЗАТЕЛИ"]
["   Щатни бройки",65]
[]
["III. БЮДЖЕТНИ ВЗАИМООТНОШЕНИЯ  (ТРАНСФЕРИ) - НЕТО (+/-)",{"$f":"B42+B45+B48+B51","v":1968300}]
[]
["Трансфери между бюджета на бюджетна организация и ЦБ (нето)",{"$f":"B43","v":0}]
["     - трансфери от/за ЦБ (+/-)"]
[]
["Трансфери между бюджети (нето)",{"$f":"B46","v":0}]
["     - получени трансфери (+)"]
[]
["Трансфери между бюджети и сметки за средствата от ЕС (нето)",{"$f":"B49","v":0}]
["     - предоставени трансфери (-)"]
[]
["Разчети за извършени плащания  в СЕБРА (+/-)",{"$f":"B52+B53","v":1968300}]
["    - разчети с подведомствени разпоредители за плащания в СЕБРА (-) "]
["    - разчети с първостепенен разпоредител за плащания в СЕБРА (+)",{"$f":"B23-B14","v":1968300}]
[]
[]
["IV. Максимален размер на ангажиментите за разходи, които могат да бъдат поети през 2026 г.",{"$f":"B28+B30+B31+B32+B35","v":513900}]
[]
[]
["V. Максимален размер на новите задължения за разходи, които могат да бъдат натрупани през 2026 г.",{"$f":"B28+B30+B31+B32+B35","v":513900}]

{"sheet":"FSZ","index":3,"n_rows":59,"n_cols":6,"rows_kept":59,"cut":false,"hidden":true,"merged":[[4,0,4,1],[5,0,5,1],[6,0,6,1],[68,0,68,1]]}
[null,"                                                                Класификация на информацията:"]
[null,"                                                Ниво 1, [TLP-GREEN]"]
[]
[]
["Б Ю Д Ж Е Т   "]
["на ФОНД \"СОЦИАЛНА ЗАКРИЛА\"",{"$nulls":4}," "]
["ЗА 2026 ГОДИНА"]
[]
[null,"(евро)"]
[]
["П О К А З А Т Е Л И","СУМА"]
[]
[]
["I. ПРИХОДИ, ПОМОЩИ И ДАРЕНИЯ ",{"$f":"B17","v":0},null,{"$f":"B14+B40-B23","v":0}]
[]
[]
["Неданъчни приходи",{"$f":"B18+B19+B20+B21","v":0}]
["Държавни такси"]
["Приходи и доходи от собственост"]
["Глоби, санкции и наказателни лихви"]
["Други приходи"]
[]
["II. РАЗХОДИ ",{"$f":"B25","v":3173100}]
[]
["Общо разходи",{"$f":"+B26+B34","v":3173100}]
["Текущи разходи",{"$f":"B27+B28+B29+B30+B31+B32","v":3168000}]
["Персонал",{"$f":"374300+11800","v":386100}]
["Издръжка и други текущи разходи",41300]
["Платени данъци, такси и административни санкции",100]
["Текущи трансфери, обезщетения и помощи за домакинствата",2740500]
["Субсидии и други текущи трансфери за нефинансови предприятия"]
["Субсидии и други текущи трансфери за юридически лица с нестопанска цел"]
[]
["Капиталови разходи",{"$f":"B35","v":5100}]
["Придобиване на дълготрайни активи и основен ремонт",5100]
[]
["НАТУРАЛНИ ПОКАЗАТЕЛИ"]
["   Щатни бройки",12]
[]
["III. БЮДЖЕТНИ ВЗАИМООТНОШЕНИЯ  (ТРАНСФЕРИ) - НЕТО (+/-)",{"$f":"B42+B45+B48+B51","v":3173100}]
[]
["Трансфери между бюджета на бюджетна организация и ЦБ (нето)",{"$f":"B43","v":0}]
["     - трансфери от/за ЦБ (+/-)"]
[]
["Трансфери между бюджети (нето)",{"$f":"B46","v":0}]
["     - получени трансфери (+)"]
[]
["Трансфери между бюджети и сметки за средствата от ЕС (нето)",{"$f":"B49","v":0}]
["     - предоставени трансфери (-)"]
[]
["Разчети за извършени плащания  в СЕБРА (+/-)",{"$f":"B52+B53","v":3173100}]
["    - разчети с подведомствени разпоредители за плащания в СЕБРА (-) "]
["    - разчети с първостепенен разпоредител за плащания в СЕБРА (+)",{"$f":"B23","v":3173100}]
[]
[]
["IV. Максимален размер на ангажиментите за разходи, които могат да бъдат поети през 2026 г.",{"$f":"B28+B30+B31+B32+B35","v":2786900}]
[]
[]
["V. Максимален размер на новите задължения за разходи, които могат да бъдат натрупани през 2026 г.",{"$f":"B28+B30+B31+B32+B35","v":2786900}]

{"sheet":"FUT","index":4,"n_rows":59,"n_cols":6,"rows_kept":59,"cut":false,"hidden":true,"merged":[[4,0,4,1],[5,0,5,1],[6,0,6,1],[68,0,68,1]]}
[null,"                                                                Класификация на информацията:"]
[null,"                                                Ниво 1, [TLP-GREEN]"]
[]
[]
["Б Ю Д Ж Е Т   "]
["на ФОНД \"УСЛОВИЯ НА ТРУД\"",{"$nulls":4}," "]
["ЗА 2026 ГОДИНА"]
[]
[null,"(евро)"]
[]
["П О К А З А Т Е Л И","СУМА"]
[]
[]
["I. ПРИХОДИ, ПОМОЩИ И ДАРЕНИЯ ",{"$f":"B17","v":2000},null,{"$f":"B14+B40-B23","v":0}]
[]
[]
["Неданъчни приходи",{"$f":"B18+B19+B20+B21","v":2000}]
["Държавни такси"]
["Приходи и доходи от собственост"]
["Глоби, санкции и наказателни лихви"]
["Други приходи",2000]
[]
["II. РАЗХОДИ ",{"$f":"B25","v":2300600}]
[]
["Общо разходи",{"$f":"+B26+B34","v":2300600}]
["Текущи разходи",{"$f":"B27+B28+B29+B30+B31+B32","v":2298000}]
["Персонал",{"$f":"217300+6500","v":223800}]
["Издръжка и други текущи разходи",{"$f":"29000+2045200","v":2074200}]
["Платени данъци, такси и административни санкции"]
["Текущи трансфери, обезщетения и помощи за домакинствата"]
["Субсидии и други текущи трансфери за нефинансови предприятия"]
["Субсидии и други текущи трансфери за юридически лица с нестопанска цел"]
[]
["Капиталови разходи",{"$f":"B35","v":2600}]
["Придобиване на дълготрайни активи и основен ремонт",2600]
[]
["НАТУРАЛНИ ПОКАЗАТЕЛИ"]
["   Щатни бройки",6]
[]
["III. БЮДЖЕТНИ ВЗАИМООТНОШЕНИЯ  (ТРАНСФЕРИ) - НЕТО (+/-)",{"$f":"B42+B45+B48+B51","v":2298600}]
[]
["Трансфери между бюджета на бюджетна организация и ЦБ (нето)",{"$f":"B43","v":0}]
["     - трансфери от/за ЦБ (+/-)"]
[]
["Трансфери между бюджети (нето)",{"$f":"B46","v":2045200}]
["     - получени трансфери (+)",2045200]
[]
["Трансфери между бюджети и сметки за средствата от ЕС (нето)",{"$f":"B49","v":0}]
["     - предоставени трансфери (-)"]
[]
["Разчети за извършени плащания  в СЕБРА (+/-)",{"$f":"B52+B53","v":253400}]
["    - разчети с подведомствени разпоредители за плащания в СЕБРА (-) "]
["    - разчети с първостепенен разпоредител за плащания в СЕБРА (+)",{"$f":"B23-B14-B45","v":253400}]
[]
[]
["IV. Максимален размер на ангажиментите за разходи, които могат да бъдат поети през 2026 г.",{"$f":"B28+B30+B31+B32+B35","v":2076800}]
[]
[]
["V. Максимален размер на новите задължения за разходи, които могат да бъдат натрупани през 2026 г.",{"$f":"B28+B30+B31+B32+B35","v":2076800}]

{"sheet":"CRCHRRI","index":5,"n_rows":59,"n_cols":6,"rows_kept":59,"cut":false,"hidden":true,"merged":[[4,0,4,1],[5,0,5,1],[6,0,6,1],[68,0,68,1]]}
[null,"                                                                Класификация на информацията:"]
[null,"                                                Ниво 1, [TLP-GREEN]"]
[]
[]
["Б Ю Д Ж Е Т   "]
["на ЦЕНТЪРА ЗА РАЗВИТИЕ НА ЧОВЕШКИТЕ РЕСУРСИ И РЕГИОНАЛНИ ИНИЦИАТИВИ",{"$nulls":4}," "]
["ЗА 2026 ГОДИНА"]
[]
[null,"(евро)"]
[]
["П О К А З А Т Е Л И","СУМА"]
[]
[]
["I. ПРИХОДИ, ПОМОЩИ И ДАРЕНИЯ ",{"$f":"B17","v":12000},null,{"$f":"B14+B40-B23","v":0}]
[]
[]
["Неданъчни приходи",{"$f":"B18+B19+B20+B21","v":12000}]
["Държавни такси"]
["Приходи и доходи от собственост",12000]
["Глоби, санкции и наказателни лихви"]
["Други приходи"]
[]
["II. РАЗХОДИ ",{"$f":"B25","v":3522100}]
[]
["Общо разходи",{"$f":"+B26+B34","v":3522100}]
["Текущи разходи",{"$f":"B27+B28+B29+B30+B31+B32","v":3318600}]
["Персонал",{"$f":"1409400+46900","v":1456300}]
["Издръжка и други текущи разходи",498600]
["Платени данъци, такси и административни санкции",40900]
["Текущи трансфери, обезщетения и помощи за домакинствата",1322800]
["Субсидии и други текущи трансфери за нефинансови предприятия"]
["Субсидии и други текущи трансфери за юридически лица с нестопанска цел"]
[]
["Капиталови разходи",{"$f":"B35","v":203500}]
["Придобиване на дълготрайни активи и основен ремонт",203500]
[]
["НАТУРАЛНИ ПОКАЗАТЕЛИ"]
["   Щатни бройки",85]
[]
["III. БЮДЖЕТНИ ВЗАИМООТНОШЕНИЯ  (ТРАНСФЕРИ) - НЕТО (+/-)",{"$f":"B42+B45+B48+B51","v":3510100}]
[]
["Трансфери между бюджета на бюджетна организация и ЦБ (нето)",{"$f":"B43","v":0}]
["     - трансфери от/за ЦБ (+/-)"]
[]
["Трансфери между бюджети (нето)",{"$f":"B46","v":0}]
["     - получени трансфери (+)"]
[]
["Трансфери между бюджети и сметки за средствата от ЕС (нето)",{"$f":"B49","v":0}]
["     - предоставени трансфери (-)"]
[]
["Разчети за извършени плащания  в СЕБРА (+/-)",{"$f":"B52+B53","v":3510100}]
["    - разчети с подведомствени разпоредители за плащания в СЕБРА (-) "]
["    - разчети с първостепенен разпоредител за плащания в СЕБРА (+)",{"$f":"B23-B14","v":3510100}]
[]
[]
["IV. Максимален размер на ангажиментите за разходи, които могат да бъдат поети през 2026 г.",{"$f":"B28+B30+B31+B32+B35","v":2024900}]
[]
[]
["V. Максимален размер на новите задължения за разходи, които могат да бъдат натрупани през 2026 г.",{"$f":"B28+B35+B30+B31+B32","v":2024900}]

{"sheet":"NIPA","index":6,"n_rows":59,"n_cols":6,"rows_kept":59,"cut":false,"hidden":true,"merged":[[4,0,4,1],[5,0,5,1],[6,0,6,1],[68,0,68,1]]}
[null,"                                                                Класификация на информацията:"]
[null,"                                                Ниво 1, [TLP-GREEN]"]
[]
[]
["Б Ю Д Ж Е Т   "]
["на НАЦИОНАЛНИЯ ИНСТИТУТ ЗА ПОМИРЕНИЕ И АРБИТРАЖ",{"$nulls":4}," "]
["ЗА 2026 ГОДИНА"]
[]
[null,"(евро)"]
[]
["П О К А З А Т Е Л И","СУМА"]
[]
[]
["I. ПРИХОДИ, ПОМОЩИ И ДАРЕНИЯ ",{"$f":"B17","v":0},null,{"$f":"B14+B40-B23","v":0}]
[]
[]
["Неданъчни приходи",{"$f":"B18+B19+B20+B21","v":0}]
["Държавни такси"]
["Приходи и доходи от собственост"]
["Глоби, санкции и наказателни лихви"]
["Други приходи"]
[]
["II. РАЗХОДИ ",{"$f":"B25","v":336600}]
[]
["Общо разходи",{"$f":"+B26+B34","v":336600}]
["Текущи разходи",{"$f":"B27+B28+B29+B30+B31+B32","v":334100}]
["Персонал",{"$f":"267600+8500","v":276100}]
["Издръжка и други текущи разходи",57700]
["Платени данъци, такси и административни санкции",300]
["Текущи трансфери, обезщетения и помощи за домакинствата"]
["Субсидии и други текущи трансфери за нефинансови предприятия"]
["Субсидии и други текущи трансфери за юридически лица с нестопанска цел"]
[]
["Капиталови разходи",{"$f":"B35","v":2500}]
["Придобиване на дълготрайни активи и основен ремонт",2500]
[]
["НАТУРАЛНИ ПОКАЗАТЕЛИ"]
["   Щатни бройки",10]
[]
["III. БЮДЖЕТНИ ВЗАИМООТНОШЕНИЯ  (ТРАНСФЕРИ) - НЕТО (+/-)",{"$f":"B42+B45+B48+B51","v":336600}]
[]
["Трансфери между бюджета на бюджетна организация и ЦБ (нето)",{"$f":"B43","v":0}]
["     - трансфери от/за ЦБ (+/-)"]
[]
["Трансфери между бюджети (нето)",{"$f":"B46","v":0}]
["     - получени трансфери (+)"]
[]
["Трансфери между бюджети и сметки за средствата от ЕС (нето)",{"$f":"B49","v":0}]
["     - предоставени трансфери (-)"]
[]
["Разчети за извършени плащания  в СЕБРА (+/-)",{"$f":"B52+B53","v":336600}]
["    - разчети с подведомствени разпоредители за плащания в СЕБРА (-) ",0]
["    - разчети с първостепенен разпоредител за плащания в СЕБРА (+)",{"$f":"B23-B14","v":336600}]
[]
[]
["IV. Максимален размер на ангажиментите за разходи, които могат да бъдат поети през 2026 г.",{"$f":"B28+B30+B31+B32+B35","v":60200}]
[]
[]
["V. Максимален размер на новите задължения за разходи, които могат да бъдат натрупани през 2026 г.",{"$f":"B28+B30+B31+B32+B35","v":60200}]